fUSD/lending_fUSD_20250606
["ID","MTS","AMOUNT","RATE_DAILY","PERIOD"]
[364748259,1749227475170,-150.0,0.00030191,7]
[364748260,1749227475180,-500.0,0.00030191,7]
[364748261,1749227475190,-150.0,0.00030191,7]
[364748262,1749227475199,-150.0,0.00030191,7]
[364748263,1749227475209,-500.0,0.00030191,7]
[364748264,1749227475219,-500.0,0.00030191,7]
[364748265,1749227475229,-500.0,0.00030191,7]
[364748266,1749227475239,-500.0,0.00030191,7]
[364748267,1749227475248,-500.0,0.00030191,7]
[364748268,1749227475258,-500.0,0.00030191,7]
[364748269,1749227475268,-553.20959988,0.00030191,7]
[364748270,1749227475277,-429.0,0.00030191,7]
[364748271,1749227475287,-500.0,0.00030191,7]
[364748272,1749227475297,-150.0,0.00030191,7]
[364748273,1749227475308,-150.0,0.00030191,7]
[364748274,1749227475317,-500.0,0.00030191,7]
[364748275,1749227475327,-500.0,0.00030191,7]
[364748276,1749227475336,-150.0,0.00030194,7]
[364748277,1749227475346,-163.855496,0.00030195,7]
[364748278,1749227475356,-163.855496,0.00030195,7]
[364748279,1749227475366,-151.0,0.00030195,7]
[364748280,1749227475377,-151.0,0.00030199,7]
[364748281,1749227475386,-151.0,0.00030199,7]
[364748282,1749227475394,-151.0,0.00030199,7]
[364748283,1749227475404,-1586.85,0.000302,2]
[364748284,1749227475413,-122141.82,0.000302,7]
[364748285,1749227475423,-5562.0,0.000302,3]
[364748286,1749227475433,-150.0,0.00030203,7]
[364748287,1749227475442,-203.078254,0.00030206,7]
[364748288,1749227475451,-203.078254,0.00030206,7]
[364748289,1749227475461,-163.855496,0.00030206,7]
[364748290,1749227475471,-163.855489,0.00030206,7]
[364748291,1749227475480,-151.0,0.00030208,7]
[364748292,1749227475490,-150.0,0.0003021,7]
[364748293,1749227475499,-150.0,0.0003021,7]
[364748294,1749227475509,-150.0,0.00030213,7]
[364748295,1749227475518,-151.0,0.00030215,7]
[364748296,1749227475527,-151.0,0.00030215,7]
[364748297,1749227475537,-203.078254,0.00030215,7]
[364748298,1749227475546,-203.078254,0.00030215,7]
[364748299,1749227475555,-695.4,0.00030215,5]
[364748300,1749227475565,-480.0,0.00030215,5]
[364748301,1749227475574,-480.0,0.00030215,5]
[364748302,1749227475584,-480.0,0.00030215,5]
[364748303,1749227475594,-151.0,0.00030216,7]
[364748304,1749227475603,-154.977828,0.00030216,7]
[364748305,1749227475613,-151.0,0.00030216,7]
[364748306,1749227475624,-151.0,0.00030216,7]
[364748307,1749227475633,-151.0,0.00030216,7]
[364748308,1749227475643,-203.078254,0.00030216,7]
[364748309,1749227475653,-203.078246,0.00030216,7]
[364748310,1749227475662,-156.587,0.00030218,2]
[364748311,1749227475673,-151.0,0.00030218,7]
[364748312,1749227475683,-500.0,0.00030219,7]
[364748313,1749227475693,-200.6854111,0.00030219,7]
[364748314,1749227475703,-395.74451207,0.00030219,7]
[364748315,1749227475713,-150.0,0.00030219,7]
[364748316,1749227475723,-150.0,0.00030219,7]
[364748317,1749227475732,-150.0,0.00030219,7]
[364748318,1749227475742,-500.0,0.00030219,7]
[364748319,1749227475751,-200.0,0.00030219,7]
[364748320,1749227475760,-150.0,0.00030219,7]
[364748321,1749227475769,-500.0,0.00030219,7]
[364748322,1749227475779,-150.0,0.00030219,7]
[364748323,1749227475788,-500.0,0.00030219,2]
[364748324,1749227475798,-500.0,0.00030219,7]
[364748325,1749227475808,-500.0,0.00030219,7]
[364748326,1749227475821,-500.0,0.00030219,2]
[364748327,1749227475832,-1706.0,0.00030219,7]
[364748328,1749227475841,-150.0,0.00030219,7]
[364748329,1749227476002,-500.0,0.00030219,7]
[364748330,1749227476026,-1249.0,0.00030219,7]
[364748331,1749227476036,-150.0,0.00030219,7]
[364748332,1749227476045,-500.0,0.00030219,7]
[364748333,1749227476054,-200.0,0.00030219,7]
[364748334,1749227476063,-150.0,0.00030219,7]
[364748335,1749227476073,-500.0,0.00030219,7]
[364748336,1749227476084,-500.0,0.00030219,7]
[364748337,1749227476094,-500.0,0.00030219,7]
[364748338,1749227476103,-500.0,0.00030219,7]
[364748339,1749227476114,-500.0,0.00030219,7]
[364748340,1749227476124,-500.0,0.00030219,7]
[364748341,1749227476135,-429.0,0.00030219,7]
[364748342,1749227476144,-500.0,0.00030219,7]
[364748343,1749227476154,-150.0,0.00030219,7]
[364748344,1749227476163,-200.82433775,0.00030219,7]
[364748345,1749227476173,-500.0,0.00030219,7]
[364748346,1749227476183,-500.0,0.00030219,7]
[364748347,1749227476192,-150.0,0.00030232,7]
[364748348,1749227476201,-150.0,0.00030232,7]
[364748349,1749227476211,-150.0,0.00030235,7]
[364748350,1749227476220,-150.0,0.00030235,7]
[364748351,1749227476230,-150.0,0.00030246,7]
[364748352,1749227476239,-407.82896973,0.00030246,7]
[364748353,1749227476248,-150.0,0.00030246,7]
[364748354,1749227476257,-150.0,0.00030246,7]
[364748355,1749227476269,-150.0,0.00030246,7]
[364748356,1749227476283,-290.02106427,0.00030246,7]
[364748357,1749227476293,-150.0,0.00030246,7]
[364748358,1749227476302,-500.0,0.00030246,7]
[364748359,1749227476311,-150.0,0.00030246,7]
[364748360,1749227476321,-500.0,0.00030246,2]
[364748361,1749227476330,-500.0,0.00030246,7]
[364748362,1749227476339,-500.0,0.00030246,7]
[364748363,1749227476348,-500.0,0.00030246,2]
[364748364,1749227476357,-1706.0,0.00030246,7]
[364748365,1749227476367,-150.0,0.00030246,7]
[364748366,1749227476378,-449.70883138,0.00030246,7]
[364748367,1749227476387,-1249.0,0.00030246,7]
[364748368,1749227476397,-200.0,0.00030246,7]
[364748369,1749227476406,-500.0,0.00030246,7]
[364748370,1749227476416,-150.0,0.00030246,7]
[364748371,1749227476425,-500.0,0.00030246,7]
[364748372,1749227476435,-500.0,0.00030246,7]
[364748373,1749227476444,-500.0,0.00030246,7]
[364748374,1749227476455,-461.51976516,0.00030246,7]
[364748375,1749227476464,-486.07300312,0.00030246,7]
[364748376,1749227476473,-500.0,0.00030246,7]
[364748377,1749227476483,-429.0,0.00030246,7]
[364748378,1749227476493,-500.0,0.00030246,7]
[364748379,1749227476503,-204.34173649,0.00030246,7]
[364748380,1749227476514,-358.18176395,0.00030246,7]
[364748381,1749227476525,-158.57695402,0.00030246,7]
[364748382,1749227476536,-150.0,0.00030251,7]
[364748383,1749227476546,-161.18264395,0.00030265,2]
[364748384,1749227476556,-150.0,0.00030268,7]
[364748385,1749227476566,-150.0,0.0003027,7]
[364748386,1749227476575,-196.43125565,0.00030274,7]
[364748387,1749227476585,-153.7544645,0.00030274,7]
[364748388,1749227476594,-169.45071894,0.00030274,7]
[364748389,1749227476604,-150.0,0.00030274,7]
[364748390,1749227476615,-500.0,0.00030274,7]
[364748391,1749227476625,-205.62743304,0.00030274,7]
[364748392,1749227476635,-391.09537029,0.00030274,2]
[364748393,1749227476645,-500.0,0.00030274,7]
[364748394,1749227476655,-152.85040679,0.00030274,7]
[364748395,1749227476664,-500.0,0.00030274,2]
[364748396,1749227476673,-1706.0,0.00030274,7]
[364748397,1749227476683,-250.0,0.00030274,7]
[364748398,1749227476692,-1249.0,0.00030274,7]
[364748399,1749227476702,-500.0,0.00030274,7]
[364748400,1749227476713,-176.51934188,0.00030274,7]
[364748401,1749227476728,-500.0,0.00030274,7]
[364748402,1749227476738,-500.0,0.00030274,7]
[364748403,1749227476747,-500.0,0.00030274,7]
[364748404,1749227476757,-429.0,0.00030274,7]
[364748405,1749227476767,-500.0,0.00030274,7]
[364748406,1749227476777,-150.0,0.0003028,7]
[364748407,1749227476786,-150.0,0.00030282,7]
[364748408,1749227476796,-150.0,0.00030282,7]
[364748409,1749227476805,-150.0,0.00030289,7]
[364748410,1749227476819,-10767.20686395,0.000303,5]
[364748411,1749227476829,-150.0,0.00030301,7]
[364748412,1749227476839,-250.0,0.00030301,7]
[364748413,1749227476849,-500.0,0.00030301,7]
[364748414,1749227476858,-500.0,0.00030301,7]
[364748415,1749227476867,-500.0,0.00030301,2]
[364748416,1749227476878,-1706.0,0.00030301,7]
[364748417,1749227476890,-1249.0,0.00030301,7]
[364748418,1749227476900,-500.0,0.00030301,7]
[364748419,1749227476910,-500.0,0.00030301,7]
[364748420,1749227476920,-500.0,0.00030301,7]
[364748421,1749227476931,-500.0,0.00030301,7]
[364748422,1749227476941,-429.0,0.00030301,7]
[364748423,1749227476951,-500.0,0.00030301,7]
[364748424,1749227476961,-1000.0,0.00030301,2]
[364748425,1749227476970,-150.0,0.00030304,7]
[364748426,1749227476979,-150.0,0.00030308,7]
[364748427,1749227476988,-151.0,0.00030317,7]
[364748428,1749227476997,-480.0,0.00030317,5]
[364748429,1749227477009,-718.82,0.00030317,5]
[364748430,1749227477018,-1521.37,0.00030317,5]
[364748431,1749227477028,-189.42276515,0.00030317,5]
[364748432,1749227477038,-1362.09,0.00030317,5]
[364748433,1749227477048,-1701.6,0.00030317,5]
[364748434,1749227477058,-1017.03,0.00030317,5]
[364748435,1749227477068,-573.7,0.00030317,5]
[364748436,1749227477077,-1869.1,0.00030317,5]
[364748437,1749227477087,-742.15,0.00030317,5]
[364748438,1749227477096,-4387.12,0.00030317,5]
[364748439,1749227477105,-1432.56,0.00030317,5]
[364748440,1749227477115,-480.0,0.00030317,5]
[364748441,1749227477125,-889.47,0.00030317,5]
[364748442,1749227477135,-150.0,0.00030319,7]
[364748443,1749227477144,-3114.45,0.00030326,7]
[364748444,1749227477154,-150.0,0.00030327,7]
[364748445,1749227477164,-899.9,0.00030327,5]
[364748446,1749227477173,-480.0,0.00030327,5]
[364748447,1749227477183,-480.0,0.00030327,5]
[364748448,1749227477193,-496.21,0.00030327,5]
[364748449,1749227477203,-480.0,0.00030327,5]
[364748450,1749227477212,-480.0,0.00030327,5]
[364748451,1749227477221,-480.0,0.00030327,5]
[364748452,1749227477231,-480.0,0.00030327,5]
[364748453,1749227477240,-480.0,0.00030327,5]
[364748454,1749227477249,-480.0,0.00030327,5]
[364748455,1749227477259,-480.0,0.00030327,5]
[364748456,1749227477268,-480.0,0.00030327,5]
[364748457,1749227477278,-514.39,0.00030327,5]
[364748458,1749227477287,-480.0,0.00030327,5]
[364748459,1749227477296,-602.08,0.00030327,5]
[364748460,1749227477306,-778.91,0.00030327,5]
[364748461,1749227477315,-942.67,0.00030327,5]
[364748462,1749227477324,-1093.12,0.00030327,5]
[364748463,1749227477334,-480.0,0.00030327,5]
[364748464,1749227477343,-483.5,0.00030327,5]
[364748465,1749227477353,-616.99,0.00030327,5]
[364748466,1749227477362,-604.38,0.00030327,5]
[364748467,1749227477373,-480.0,0.00030327,5]
[364748468,1749227477383,-752.61,0.00030327,5]
[364748469,1749227477393,-480.0,0.00030327,5]
[364748470,1749227477403,-480.0,0.00030327,5]
[364748471,1749227477412,-517.27,0.00030327,5]
[364748472,1749227477421,-480.0,0.00030327,5]
[364748473,1749227477430,-660.66,0.00030327,5]
[364748474,1749227477439,-1167.43,0.00030327,5]
[364748475,1749227477449,-480.0,0.00030327,5]
[364748476,1749227477459,-480.0,0.00030327,5]
[364748477,1749227477469,-480.0,0.00030327,5]
[364748478,1749227477479,-480.0,0.00030327,5]
[364748479,1749227477489,-480.0,0.00030327,5]
[364748480,1749227477498,-1242.39,0.00030327,5]
[364748481,1749227477508,-480.0,0.00030327,5]
[364748482,1749227477518,-719.98,0.00030327,5]
[364748483,1749227477528,-480.0,0.00030327,5]
[364748484,1749227477537,-1683.43,0.00030327,5]
[364748485,1749227477547,-986.2,0.00030327,5]
[364748486,1749227477557,-492.17,0.00030327,5]
[364748487,1749227477567,-1089.77,0.00030327,5]
[364748488,1749227477577,-849.29,0.00030327,5]
[364748489,1749227477586,-1140.16,0.00030327,5]
[364748490,1749227477596,-672.69,0.00030327,5]
[364748491,1749227477607,-480.0,0.00030327,5]
[364748492,1749227477616,-962.41,0.00030327,5]
[364748493,1749227477626,-480.0,0.00030327,5]
[364748494,1749227477635,-693.92,0.00030327,5]
[364748495,1749227477644,-690.87,0.00030327,5]
[364748496,1749227477654,-1794.747295,0.00030327,5]
[364748497,1749227477663,-480.0,0.00030327,5]
[364748498,1749227477672,-1070.56,0.00030327,5]
[364748499,1749227477682,-9465.44,0.00030327,5]
[364748500,1749227477693,-1610.06,0.00030327,5]
[364748501,1749227477704,-480.0,0.00030327,5]
[364748502,1749227477714,-73448.51,0.00030327,5]
[364748503,1749227477722,-1020.69,0.00030327,5]
[364748504,1749227477732,-3692.71,0.00030327,5]
[364748505,1749227477741,-1368.0,0.00030327,5]
[364748506,1749227477751,-480.0,0.00030327,5]
[364748507,1749227477760,-1150.85,0.00030327,5]
[364748508,1749227477770,-1896.103585,0.00030327,5]
[364748509,1749227477780,-480.0,0.00030327,5]
[364748510,1749227477789,-1280.22,0.00030327,5]
[364748511,1749227477799,-1356.53,0.00030327,5]
[364748512,1749227477808,-914.26,0.00030327,5]
[364748513,1749227477820,-480.0,0.00030327,5]
[364748514,1749227477830,-1493.12,0.00030327,5]
[364748515,1749227477840,-1953.69,0.00030327,5]
[364748516,1749227477850,-480.0,0.00030327,5]
[364748517,1749227477860,-492.14,0.00030327,5]
[364748518,1749227477870,-770.69,0.00030327,5]
[364748519,1749227477881,-651.17,0.00030327,5]
[364748520,1749227477891,-3716.38,0.00030327,5]
[364748521,1749227477901,-2411.63,0.00030327,5]
[364748522,1749227477910,-498.68,0.00030327,5]
[364748523,1749227477920,-480.0,0.00030327,5]
[364748524,1749227477929,-1391.28,0.00030327,5]
[364748525,1749227477939,-4869.05,0.00030327,5]
[364748526,1749227477949,-1028.21,0.00030327,5]
[364748527,1749227477958,-1940.38,0.00030327,5]
[364748528,1749227477968,-480.0,0.00030327,5]
[364748529,1749227477977,-3304.43,0.00030327,5]
[364748530,1749227477987,-1323.14,0.00030327,5]
[364748531,1749227477996,-1107.08,0.00030327,5]
[364748532,1749227478006,-1563.7,0.00030327,5]
[364748533,1749227478016,-1807.27,0.00030327,5]
[364748534,1749227478025,-480.0,0.00030327,5]
[364748535,1749227478034,-5020.42,0.00030327,5]
[364748536,1749227478043,-1209.36,0.00030327,5]
[364748537,1749227478052,-3471.8,0.00030327,5]
[364748538,1749227478061,-480.0,0.00030327,5]
[364748539,1749227478071,-150.47777,0.00030327,5]
[364748540,1749227478080,-1414.46,0.00030327,5]
[364748541,1749227478089,-2190.57,0.00030327,5]
[364748542,1749227478099,-800.74,0.00030327,5]
[364748543,1749227478108,-480.0,0.00030327,5]
[364748544,1749227478119,-926.05,0.00030327,5]
[364748545,1749227478131,-1064.41,0.00030327,5]
[364748546,1749227478141,-253.62,0.00030327,5]
[364748547,1749227478151,-3312.09,0.00030327,5]
[364748548,1749227478161,-1585.13,0.00030327,5]
[364748549,1749227478171,-1027.06,0.00030327,5]
[364748550,1749227478180,-480.0,0.00030327,5]
[364748551,1749227478190,-10318.0,0.00030327,5]
[364748552,1749227478200,-2193.8,0.00030327,5]
[364748553,1749227478209,-480.0,0.00030327,5]
[364748554,1749227478219,-748.18,0.00030327,5]
[364748555,1749227478229,-185.23991,0.00030327,5]
[364748556,1749227478238,-499.32,0.00030327,5]
[364748557,1749227478247,-626.17,0.00030327,5]
[364748558,1749227478256,-484.78,0.00030327,5]
[364748559,1749227478265,-480.0,0.00030327,5]
[364748560,1749227478274,-480.0,0.00030327,5]
[364748561,1749227478284,-2333.39,0.00030327,5]
[364748562,1749227478293,-2793.02,0.00030327,5]
[364748563,1749227478304,-480.0,0.00030327,5]
[364748564,1749227478318,-480.0,0.00030327,5]
[364748565,1749227478330,-480.0,0.00030327,5]
[364748566,1749227478340,-4622.42,0.00030327,5]
[364748567,1749227478349,-2090.29,0.00030327,5]
[364748568,1749227478359,-781.66,0.00030327,5]
[364748569,1749227478368,-480.0,0.00030327,5]
[364748570,1749227478379,-1608.78,0.00030327,5]
[364748571,1749227478388,-484.06,0.00030327,5]
[364748572,1749227478398,-480.0,0.00030327,5]
[364748573,1749227478407,-1340.78,0.00030327,5]
[364748574,1749227478417,-731.94,0.00030327,5]
[364748575,1749227478426,-2052.89,0.00030327,5]
[364748576,1749227478435,-934.73,0.00030327,5]
[364748577,1749227478444,-950.85,0.00030327,5]
[364748578,1749227478454,-1137.5,0.00030327,5]
[364748579,1749227478463,-1902.15,0.00030327,5]
[364748580,1749227478472,-629.67,0.00030327,5]
[364748581,1749227478482,-158.777066,0.00030327,5]
[364748582,1749227478492,-480.0,0.00030327,5]
[364748583,1749227478502,-254.73,0.00030327,5]
[364748584,1749227478512,-607.58,0.00030327,5]
[364748585,1749227478522,-4122.08,0.00030327,5]
[364748586,1749227478532,-480.0,0.00030327,5]
[364748587,1749227478542,-2934.61,0.00030327,5]
[364748588,1749227478552,-5801.37,0.00030327,5]
[364748589,1749227478562,-480.0,0.00030327,5]
[364748590,1749227478571,-663.99,0.00030327,5]
[364748591,1749227478580,-20866.89,0.00030327,5]
[364748592,1749227478589,-1043.81,0.00030327,5]
[364748593,1749227478598,-480.0,0.00030327,5]
[364748594,1749227478607,-3899.86,0.00030327,5]
[364748595,1749227478617,-763.68,0.00030327,5]
[364748596,1749227478627,-857.46,0.00030327,5]
[364748597,1749227478636,-7579.31,0.00030327,5]
[364748598,1749227478646,-2367.61,0.00030327,5]
[364748599,1749227478655,-480.0,0.00030327,5]
[364748600,1749227478665,-480.0,0.00030327,5]
[364748601,1749227478674,-480.0,0.00030327,5]
[364748602,1749227478684,-480.0,0.00030327,5]
[364748603,1749227478693,-480.0,0.00030327,5]
[364748604,1749227478702,-2450.88,0.00030327,5]
[364748605,1749227478712,-13894.46,0.00030327,5]
[364748606,1749227478722,-480.0,0.00030327,5]
[364748607,1749227478731,-150.0,0.00030328,7]
[364748608,1749227478740,-500.0,0.00030328,7]
[364748609,1749227478750,-500.0,0.00030328,2]
[364748610,1749227478926,-1706.0,0.00030328,7]
[364748611,1749227478936,-1249.0,0.00030328,7]
[364748612,1749227478946,-500.0,0.00030328,7]
[364748613,1749227478956,-500.0,0.00030328,7]
[364748614,1749227478966,-500.0,0.00030328,7]
[364748615,1749227478975,-500.0,0.00030328,7]
[364748616,1749227478985,-429.0,0.00030328,7]
[364748617,1749227478995,-500.0,0.00030328,7]
[364748618,1749227479004,-150.0,0.00030334,7]
[364748619,1749227479014,-150.0,0.00030334,7]
[364748620,1749227479023,-3114.45,0.00030337,7]
[364748621,1749227479032,-480.0,0.00030338,5]
[364748622,1749227479042,-454.52878552,0.00030338,5]
[364748623,1749227479052,-480.0,0.00030338,5]
[364748624,1749227479061,-385.5274372,0.00030338,5]
[364748625,1749227479070,-480.0,0.00030338,5]
[364748626,1749227479079,-480.0,0.00030338,5]
[364748627,1749227479088,-480.0,0.00030338,5]
[364748628,1749227479098,-480.0,0.00030338,5]
[364748629,1749227479107,-480.0,0.00030338,5]
[364748630,1749227479117,-480.0,0.00030338,5]
[364748631,1749227479127,-480.0,0.00030338,5]
[364748632,1749227479136,-480.0,0.00030338,5]
[364748633,1749227479145,-480.0,0.00030338,5]
[364748634,1749227479155,-480.0,0.00030338,5]
[364748635,1749227479164,-482.44,0.00030338,5]
[364748636,1749227479173,-451.40609965,0.00030338,5]
[364748637,1749227479183,-480.0,0.00030338,5]
[364748638,1749227479192,-480.0,0.00030338,5]
[364748639,1749227479201,-480.0,0.00030338,5]
[364748640,1749227479211,-480.0,0.00030338,5]
[364748641,1749227479220,-480.0,0.00030338,5]
[364748642,1749227479230,-480.0,0.00030338,5]
[364748643,1749227479239,-480.0,0.00030338,5]
[364748644,1749227479249,-480.0,0.00030338,5]
[364748645,1749227479258,-480.0,0.00030338,5]
[364748646,1749227479267,-600.0,0.00030338,30]
[364748647,1749227479276,-966.29,0.00030338,5]
[364748648,1749227479286,-480.0,0.00030338,5]
[364748649,1749227479296,-480.0,0.00030338,5]
[364748650,1749227479306,-480.0,0.00030338,5]
[364748651,1749227479315,-568.18,0.00030338,5]
[364748652,1749227479324,-594.26995091,0.00030338,5]
[364748653,1749227479334,-480.0,0.00030338,5]
[364748654,1749227479343,-480.0,0.00030338,5]
[364748655,1749227479353,-480.0,0.00030338,5]
[364748656,1749227479362,-480.0,0.00030338,5]
[364748657,1749227479371,-480.0,0.00030338,5]
[364748658,1749227479382,-480.0,0.00030338,5]
[364748659,1749227479392,-740.56,0.00030338,5]
[364748660,1749227479401,-511.33,0.00030338,5]
[364748661,1749227479410,-480.0,0.00030338,5]
[364748662,1749227479420,-480.0,0.00030338,5]
[364748663,1749227479430,-480.0,0.00030338,5]
[364748664,1749227479439,-480.0,0.00030338,5]
[364748665,1749227479448,-480.0,0.00030338,5]
[364748666,1749227479458,-480.0,0.00030338,5]
[364748667,1749227479468,-480.0,0.00030338,5]
[364748668,1749227479478,-480.0,0.00030338,5]
[364748669,1749227479488,-480.0,0.00030338,5]
[364748670,1749227479497,-480.0,0.00030338,5]
[364748671,1749227479507,-522.46857005,0.00030338,5]
[364748672,1749227479516,-480.0,0.00030338,5]
[364748673,1749227479525,-480.0,0.00030338,5]
[364748674,1749227479535,-480.0,0.00030338,5]
[364748675,1749227479544,-1052.1,0.00030338,5]
[364748676,1749227479553,-480.0,0.00030338,5]
[364748677,1749227479563,-634.64,0.00030338,5]
[364748678,1749227479572,-480.0,0.00030338,5]
[364748679,1749227479582,-1993.76,0.00030338,5]
[364748680,1749227479591,-480.0,0.00030338,5]
[364748681,1749227479601,-5891.5,0.00030338,5]
[364748682,1749227479610,-480.0,0.00030338,5]
[364748683,1749227479619,-653.09,0.00030338,5]
[364748684,1749227479630,-535.71,0.00030338,5]
[364748685,1749227479639,-3595.0,0.00030338,5]
[364748686,1749227479648,-480.0,0.00030338,5]
[364748687,1749227479658,-480.0,0.00030338,5]
[364748688,1749227479667,-480.0,0.00030338,5]
[364748689,1749227479676,-9081.59,0.00030338,5]
[364748690,1749227479686,-967.73,0.00030338,5]
[364748691,1749227479696,-480.0,0.00030338,5]
[364748692,1749227479705,-480.0,0.00030338,5]
[364748693,1749227479715,-4161.62,0.00030338,5]
[364748694,1749227479725,-480.0,0.00030338,5]
[364748695,1749227479734,-2214.57,0.00030338,5]
[364748696,1749227479744,-1000.0,0.00030338,5]
[364748697,1749227479753,-855.23,0.00030338,5]
[364748698,1749227479763,-480.0,0.00030338,5]
[364748699,1749227479773,-3706.72,0.00030338,5]
[364748700,1749227479783,-480.0,0.00030338,5]
[364748701,1749227479793,-480.0,0.00030338,5]
[364748702,1749227479802,-480.0,0.00030338,5]
[364748703,1749227479812,-12889.28,0.00030338,5]
[364748704,1749227479826,-480.0,0.00030338,5]
[364748705,1749227479835,-1763.31,0.00030338,5]
[364748706,1749227479844,-480.0,0.00030338,5]
[364748707,1749227479854,-1503.07,0.00030338,5]
[364748708,1749227479865,-480.0,0.00030338,5]
[364748709,1749227479876,-480.0,0.00030338,5]
[364748710,1749227479886,-1036.12,0.00030338,5]
[364748711,1749227479897,-1295.79,0.00030338,5]
[364748712,1749227479908,-480.0,0.00030338,5]
[364748713,1749227479918,-480.0,0.00030338,5]
[364748714,1749227479927,-505.7175822,0.00030338,5]
[364748715,1749227479938,-601.38,0.00030338,5]
[364748716,1749227479948,-480.0,0.00030338,5]
[364748717,1749227479958,-1374.52,0.00030338,5]
[364748718,1749227479967,-480.0,0.00030338,5]
[364748719,1749227479977,-480.0,0.00030338,5]
[364748720,1749227479987,-610.9,0.00030338,5]
[364748721,1749227479996,-480.0,0.00030338,5]
[364748722,1749227480006,-15975.47,0.00030338,5]
[364748723,1749227480015,-480.0,0.00030338,5]
[364748724,1749227480024,-480.0,0.00030338,5]
[364748725,1749227480033,-2179.35,0.00030338,5]
[364748726,1749227480042,-678.4,0.00030338,5]
[364748727,1749227480052,-480.0,0.00030338,5]
[364748728,1749227480061,-899.39,0.00030338,5]
[364748729,1749227480071,-464.42401485,0.00030338,5]
[364748730,1749227480080,-1719.81,0.00030338,5]
[364748731,1749227480090,-480.0,0.00030338,5]
[364748732,1749227480099,-480.0,0.00030338,5]
[364748733,1749227480108,-480.0,0.00030338,5]
[364748734,1749227480117,-209.0,0.0003034,2]
[364748735,1749227480128,-150.0,0.00030346,7]
[364748736,1749227480136,-480.0,0.00030349,5]
[364748737,1749227480145,-480.0,0.00030349,5]
[364748738,1749227480158,-480.0,0.00030349,5]
[364748739,1749227480176,-480.0,0.00030349,5]
[364748740,1749227480191,-480.0,0.00030349,5]
[364748741,1749227480207,-480.0,0.00030349,5]
[364748742,1749227480226,-1889.97,0.00030349,5]
[364748743,1749227480240,-480.0,0.00030349,5]
[364748744,1749227480256,-550.09,0.00030349,5]
[364748745,1749227480272,-527.97,0.00030349,5]
[364748746,1749227480289,-1427.75,0.00030349,5]
[364748747,1749227480306,-623.29,0.00030349,5]
[364748748,1749227480324,-837.05,0.00030349,5]
[364748749,1749227480339,-1092.01,0.00030349,5]
[364748750,1749227480356,-777.13,0.00030349,5]
[364748751,1749227480373,-480.0,0.00030349,5]
[364748752,1749227480393,-1290.81,0.00030349,5]
[364748753,1749227480410,-806.85,0.00030349,5]
[364748754,1749227480428,-1309.04,0.00030349,5]
[364748755,1749227480440,-480.0,0.00030349,5]
[364748756,1749227480457,-1370.18,0.00030349,5]
[364748757,1749227480470,-609.3,0.00030349,5]
[364748758,1749227480484,-950.48,0.00030349,5]